[Event "Titled Tuesday Blitz October 31 Early 2023"]
[White "Ovezdurdyyeva, Jemal"]
[Black "sjoerd893"]
[WhiteFideId "14001888"]
[WhiteElo "2358"]
[BlackElo "2524"]
[Result "1/2-1/2"]
[Round "4"]
[TimeControl "180+1"]
[Date "2023.10.31"]
[WhiteClock "0:00:18"]
[BlackClock "0:00:04"]
[Board "119"]

1. e4 {[%clk 0:03:00]}  c5 {[%clk 0:02:58]} 2. Nf3 {[%clk 0:03:00]}  Nc6 {[%clk 0:02:57]} 3. c3 {[%clk 0:02:59]}  Nf6 {[%clk 0:02:57]} 4. Bd3 {[%clk 0:02:58]}  e5 {[%clk 0:02:32]} 5. O-O {[%clk 0:02:56]}  Be7 {[%clk 0:02:31]} 6. Bc2 {[%clk 0:02:53]}  O-O {[%clk 0:02:28]} 7. d4 {[%clk 0:02:49]}  cxd4 {[%clk 0:02:27]} 8. cxd4 {[%clk 0:02:49]}  d6 {[%clk 0:02:08]} 9. h3 {[%clk 0:02:45]}  Nb4 {[%clk 0:01:55]} 10. dxe5 {[%clk 0:02:40]}  dxe5 {[%clk 0:01:53]} 11. Nxe5 {[%clk 0:02:36]}  Qxd1 {[%clk 0:01:50]} 12. Bxd1 {[%clk 0:02:37]}  Nxe4 {[%clk 0:01:50]} 13. a3 {[%clk 0:02:37]}  Nd5 {[%clk 0:01:42]} 14. Bf3 {[%clk 0:02:36]}  Nef6 {[%clk 0:01:43]} 15. Nc3 {[%clk 0:02:27]}  Be6 {[%clk 0:01:38]} 16. Bg5 {[%clk 0:02:22]}  Nxc3 {[%clk 0:01:28]} 17. bxc3 {[%clk 0:02:21]}  h6 {[%clk 0:01:13]} 18. Bh4 {[%clk 0:02:14]}  g5 {[%clk 0:00:46]} 19. Bg3 {[%clk 0:02:14]}  Bd5 {[%clk 0:00:46]} 20. Nd7 {[%clk 0:01:49]}  Bxf3 {[%clk 0:00:41]} 21. Nxf6+ {[%clk 0:01:38]}  Bxf6 {[%clk 0:00:41]} 22. gxf3 {[%clk 0:01:38]}  Bxc3 {[%clk 0:00:41]} 23. Rab1 {[%clk 0:01:39]}  b6 {[%clk 0:00:41]} 24. Rfc1 {[%clk 0:01:39]}  Rac8 {[%clk 0:00:40]} 25. Rc2 {[%clk 0:01:36]}  Bd4 {[%clk 0:00:40]} 26. Rd2 {[%clk 0:01:35]}  Bc5 {[%clk 0:00:39]} 27. Rd7 {[%clk 0:01:35]}  Bxa3 {[%clk 0:00:21]} 28. Rxa7 {[%clk 0:01:35]}  Bc5 {[%clk 0:00:20]} 29. Rb7 {[%clk 0:01:32]}  Rcd8 {[%clk 0:00:17]} 30. Kg2 {[%clk 0:01:28]}  Rd2 {[%clk 0:00:17]} 31. Ra1 {[%clk 0:01:25]}  Re8 {[%clk 0:00:15]} 32. Raa7 {[%clk 0:01:24]}  Rf8 {[%clk 0:00:09]} 33. Rc7 {[%clk 0:01:19]}  Rc2 {[%clk 0:00:08]} 34. Rab7 {[%clk 0:01:19]}  Rd2 {[%clk 0:00:08]} 35. h4 {[%clk 0:01:15]}  Kg7 {[%clk 0:00:08]} 36. h5 {[%clk 0:01:08]}  Kg8 {[%clk 0:00:07]} 37. Rc6 {[%clk 0:01:01]}  Kg7 {[%clk 0:00:06]} 38. Be5+ {[%clk 0:00:59]}  Kh7 {[%clk 0:00:06]} 39. Bg3 {[%clk 0:00:55]}  Re2 {[%clk 0:00:05]} 40. Kf1 {[%clk 0:00:50]}  Rd2 {[%clk 0:00:04]} 41. Rf6 {[%clk 0:00:48]}  Rd5 {[%clk 0:00:04]} 42. Rfxf7+ {[%clk 0:00:46]}  Rxf7 {[%clk 0:00:05]} 43. Rxf7+ {[%clk 0:00:45]}  Kg8 {[%clk 0:00:05]} 44. Rb7 {[%clk 0:00:43]}  Rd3 {[%clk 0:00:05]} 45. Ke2 {[%clk 0:00:42]}  Rb3 {[%clk 0:00:05]} 46. Be5 {[%clk 0:00:39]}  Bf8 {[%clk 0:00:05]} 47. Rb8 {[%clk 0:00:38]}  Kf7 {[%clk 0:00:05]} 48. Bd4 {[%clk 0:00:38]}  b5 {[%clk 0:00:05]} 49. Rb6 {[%clk 0:00:36]}  Rb1 {[%clk 0:00:03]} 50. Rf6+ {[%clk 0:00:32]}  Kg8 {[%clk 0:00:03]} 51. f4 {[%clk 0:00:24]}  gxf4 {[%clk 0:00:02]} 52. Rxf4 {[%clk 0:00:25]}  b4 {[%clk 0:00:03]} 53. Kd2 {[%clk 0:00:24]}  b3 {[%clk 0:00:03]} 54. Bc3 {[%clk 0:00:23]}  Bc5 {[%clk 0:00:02]} 55. Rg4+ {[%clk 0:00:22]}  Kf7 {[%clk 0:00:02]} 56. Rf4+ {[%clk 0:00:23]}  Ke7 {[%clk 0:00:02]} 57. Rf5 {[%clk 0:00:22]}  Bb6 {[%clk 0:00:01]} 58. Rb5 {[%clk 0:00:22]}  Bc7 {[%clk 0:00:02]} 59. Bb4+ {[%clk 0:00:22]}  Kd7 {[%clk 0:00:02]} 60. Ba3 {[%clk 0:00:21]}  Bf4+ {[%clk 0:00:02]} 61. Kc3 {[%clk 0:00:21]}  Bg5 {[%clk 0:00:02]} 62. Rxb3 {[%clk 0:00:21]}  Rxb3+ {[%clk 0:00:03]} 63. Kxb3 {[%clk 0:00:22]}  Ke6 {[%clk 0:00:03]} 64. Kc2 {[%clk 0:00:21]}  Kf5 {[%clk 0:00:04]} 65. Kd3 {[%clk 0:00:20]}  Kg4 {[%clk 0:00:05]} 66. Ke4 {[%clk 0:00:21]}  Kxh5 {[%clk 0:00:06]} 67. f4 {[%clk 0:00:22]}  Bxf4 {[%clk 0:00:04]} 68. Kxf4 {[%clk 0:00:18]}  Kg6 {[%clk 0:00:04]} 1/2-1/2


[Site "https://www.chess.com"]

[Event "Titled Tuesday Blitz October 31 Early 2023"]
[White "vishwa_vijeta"]
[Black "Smirnov, Timofey"]
[BlackFideId "24176427"]
[WhiteElo "2518"]
[BlackElo "2343"]
[Result "1-0"]
[Round "4"]
[TimeControl "180+1"]
[Date "2023.10.31"]
[WhiteClock "0:01:34"]
[BlackClock "0:01:20"]
[Board "122"]

1. e4 {[%clk 0:03:00]}  e5 {[%clk 0:02:59]} 2. Nf3 {[%clk 0:03:00]}  Nf6 {[%clk 0:02:59]} 3. d4 {[%clk 0:02:59]}  Nxe4 {[%clk 0:02:59]} 4. Bd3 {[%clk 0:02:47]}  Nc6 {[%clk 0:02:58]} 5. c4 {[%clk 0:02:13]}  Nf6 {[%clk 0:02:33]} 6. dxe5 {[%clk 0:02:03]}  Qe7 {[%clk 0:02:29]} 7. O-O {[%clk 0:02:02]}  Ng8 {[%clk 0:02:19]} 8. Nc3 {[%clk 0:02:01]}  d6 {[%clk 0:02:14]} 9. Nd5 {[%clk 0:01:58]}  Qd8 {[%clk 0:02:12]} 10. Re1 {[%clk 0:01:51]}  Nge7 {[%clk 0:02:10]} 11. exd6 {[%clk 0:01:50]}  Qxd6 {[%clk 0:02:08]} 12. Bf4 {[%clk 0:01:50]}  Qd7 {[%clk 0:01:22]} 13. Nxc7+ {[%clk 0:01:43]}  Kd8 {[%clk 0:01:22]} 14. Bf5 {[%clk 0:01:34]}  Nxf5 {[%clk 0:01:20]} 15. Re8# {[%clk 0:01:34]} 1-0


[Site "https://www.chess.com"]

[Event "Titled Tuesday Blitz October 31 Early 2023"]
[White "Estrada Nieto, Julian"]
[Black "Bobomurodova, Maftuna"]
[WhiteFideId "5101018"]
[BlackFideId "14207400"]
[WhiteElo "2516"]
[BlackElo "2341"]
[Result "1-0"]
[Round "4"]
[TimeControl "180+1"]
[Date "2023.10.31"]
[WhiteClock "0:00:43"]
[BlackClock "0:00:28"]
[Board "123"]

1. e4 {[%clk 0:03:00]}  e5 {[%clk 0:02:59]} 2. Nf3 {[%clk 0:03:00]}  Nc6 {[%clk 0:02:58]} 3. Bb5 {[%clk 0:03:01]}  Nf6 {[%clk 0:02:58]} 4. O-O {[%clk 0:02:59]}  Nxe4 {[%clk 0:02:57]} 5. Re1 {[%clk 0:02:59]}  Nd6 {[%clk 0:02:56]} 6. Nxe5 {[%clk 0:02:59]}  Nxe5 {[%clk 0:02:57]} 7. Rxe5+ {[%clk 0:02:58]}  Be7 {[%clk 0:02:57]} 8. Bf1 {[%clk 0:02:59]}  O-O {[%clk 0:02:56]} 9. Nc3 {[%clk 0:02:59]}  Bf6 {[%clk 0:02:56]} 10. Re1 {[%clk 0:02:58]}  c6 {[%clk 0:02:48]} 11. d4 {[%clk 0:02:52]}  Ne8 {[%clk 0:02:40]} 12. d5 {[%clk 0:02:43]}  g6 {[%clk 0:02:32]} 13. Bh6 {[%clk 0:02:39]}  Ng7 {[%clk 0:02:30]} 14. Qf3 {[%clk 0:02:18]}  Be7 {[%clk 0:01:50]} 15. Rad1 {[%clk 0:02:05]}  Re8 {[%clk 0:01:42]} 16. Ne4 {[%clk 0:02:02]}  d6 {[%clk 0:01:34]} 17. Bxg7 {[%clk 0:01:37]}  Kxg7 {[%clk 0:01:31]} 18. dxc6 {[%clk 0:01:37]}  bxc6 {[%clk 0:01:13]} 19. Qc3+ {[%clk 0:01:26]}  Kg8 {[%clk 0:01:07]} 20. Nxd6 {[%clk 0:01:11]}  Bxd6 {[%clk 0:01:00]} 21. Rxd6 {[%clk 0:01:06]}  Bd7 {[%clk 0:00:54]} 22. Red1 {[%clk 0:01:03]}  Re7 {[%clk 0:00:50]} 23. Qd2 {[%clk 0:01:00]}  Qb6 {[%clk 0:00:45]} 24. Rxd7 {[%clk 0:00:58]}  Ree8 {[%clk 0:00:40]} 25. Bc4 {[%clk 0:00:56]}  Rf8 {[%clk 0:00:39]} 26. b3 {[%clk 0:00:55]}  Rae8 {[%clk 0:00:37]} 27. Qf4 {[%clk 0:00:51]}  Qc5 {[%clk 0:00:28]} 28. Rxf7 {[%clk 0:00:43]} 1-0


[Site "https://www.chess.com"]

[Event "Titled Tuesday Blitz October 31 Early 2023"]
[White "Manon-og, Ramon Jr."]
[Black "Lehtosaari, Mauri"]
[WhiteFideId "5200776"]
[BlackFideId "501999"]
[WhiteElo "2334"]
[BlackElo "2512"]
[Result "1-0"]
[Round "4"]
[TimeControl "180+1"]
[Date "2023.10.31"]
[WhiteClock "0:00:23"]
[BlackClock "0:00:00"]
[Board "124"]

1. e4 {[%clk 0:03:00]}  c5 {[%clk 0:02:53]} 2. Nf3 {[%clk 0:03:00]}  e6 {[%clk 0:02:51]} 3. g3 {[%clk 0:03:00]}  Nc6 {[%clk 0:02:48]} 4. Bg2 {[%clk 0:02:59]}  Nf6 {[%clk 0:02:48]} 5. Nc3 {[%clk 0:02:59]}  d5 {[%clk 0:02:46]} 6. exd5 {[%clk 0:02:59]}  exd5 {[%clk 0:02:47]} 7. d4 {[%clk 0:02:59]}  cxd4 {[%clk 0:02:39]} 8. Nxd4 {[%clk 0:03:00]}  Bg4 {[%clk 0:02:29]} 9. Nxc6 {[%clk 0:02:51]}  bxc6 {[%clk 0:02:27]} 10. Qd4 {[%clk 0:02:51]}  Be7 {[%clk 0:02:20]} 11. O-O {[%clk 0:02:49]}  O-O {[%clk 0:02:19]} 12. Bg5 {[%clk 0:02:48]}  Bf5 {[%clk 0:02:20]} 13. Rfe1 {[%clk 0:02:32]}  Re8 {[%clk 0:02:17]} 14. Rac1 {[%clk 0:02:27]}  h6 {[%clk 0:02:06]} 15. Bf4 {[%clk 0:02:26]}  Qb6 {[%clk 0:02:05]} 16. Qxb6 {[%clk 0:02:16]}  axb6 {[%clk 0:02:05]} 17. a3 {[%clk 0:02:16]}  Bc5 {[%clk 0:01:54]} 18. Rxe8+ {[%clk 0:01:55]}  Rxe8 {[%clk 0:01:53]} 19. h3 {[%clk 0:01:51]}  b5 {[%clk 0:01:42]} 20. g4 {[%clk 0:01:47]}  Bg6 {[%clk 0:01:36]} 21. Kf1 {[%clk 0:01:41]}  Bb6 {[%clk 0:01:22]} 22. Bf3 {[%clk 0:01:33]}  Nd7 {[%clk 0:00:59]} 23. a4 {[%clk 0:01:12]}  bxa4 {[%clk 0:00:50]} 24. Nxa4 {[%clk 0:01:12]}  Ba7 {[%clk 0:00:51]} 25. b3 {[%clk 0:01:08]}  f6 {[%clk 0:00:47]} 26. Be2 {[%clk 0:01:04]}  Be4 {[%clk 0:00:42]} 27. Ba6 {[%clk 0:01:00]}  Ne5 {[%clk 0:00:40]} 28. Bb7 {[%clk 0:00:52]}  c5 {[%clk 0:00:39]} 29. Nc3 {[%clk 0:00:50]}  Ng6 {[%clk 0:00:24]} 30. Bg3 {[%clk 0:00:46]}  f5 {[%clk 0:00:18]} 31. Bxd5+ {[%clk 0:00:43]}  Bxd5 {[%clk 0:00:17]} 32. Nxd5 {[%clk 0:00:44]}  fxg4 {[%clk 0:00:18]} 33. hxg4 {[%clk 0:00:44]}  Rd8 {[%clk 0:00:13]} 34. c4 {[%clk 0:00:43]}  Bb8 {[%clk 0:00:13]} 35. Kg2 {[%clk 0:00:39]}  Bxg3 {[%clk 0:00:13]} 36. Kxg3 {[%clk 0:00:40]}  Ne5 {[%clk 0:00:13]} 37. f4 {[%clk 0:00:39]}  Nd3 {[%clk 0:00:12]} 38. Rd1 {[%clk 0:00:37]}  Re8 {[%clk 0:00:01]} 39. Rxd3 {[%clk 0:00:31]}  Kh7 {[%clk 0:00:02]} 40. f5 {[%clk 0:00:31]}  h5 {[%clk 0:00:03]} 41. g5 {[%clk 0:00:31]}  h4+ {[%clk 0:00:04]} 42. Kxh4 {[%clk 0:00:31]}  g6 {[%clk 0:00:04]} 43. f6 {[%clk 0:00:31]}  Kg8 {[%clk 0:00:04]} 44. Kg4 {[%clk 0:00:31]}  Kf7 {[%clk 0:00:03]} 45. Kf4 {[%clk 0:00:31]}  Rh8 {[%clk 0:00:04]} 46. Re3 {[%clk 0:00:30]}  Rh4+ {[%clk 0:00:04]} 47. Kg3 {[%clk 0:00:30]}  Rh5 {[%clk 0:00:04]} 48. Re7+ {[%clk 0:00:30]}  Kf8 {[%clk 0:00:05]} 49. Kg4 {[%clk 0:00:30]}  Rh1 {[%clk 0:00:05]} 50. Nf4 {[%clk 0:00:29]}  Rg1+ {[%clk 0:00:05]} 51. Kf3 {[%clk 0:00:29]}  Rf1+ {[%clk 0:00:05]} 52. Kg3 {[%clk 0:00:29]}  Rg1+ {[%clk 0:00:05]} 53. Ng2 {[%clk 0:00:28]}  Rb1 {[%clk 0:00:05]} 54. Re3 {[%clk 0:00:27]}  Kf7 {[%clk 0:00:05]} 55. Nf4 {[%clk 0:00:27]}  Rg1+ {[%clk 0:00:05]} 56. Kh4 {[%clk 0:00:26]}  Rh1+ {[%clk 0:00:05]} 57. Kg4 {[%clk 0:00:26]}  Rg1+ {[%clk 0:00:05]} 58. Rg3 {[%clk 0:00:27]}  Rf1 {[%clk 0:00:04]} 59. Nd3 {[%clk 0:00:27]}  Rd1 {[%clk 0:00:01]} 60. Nxc5 {[%clk 0:00:26]}  Rd4+ {[%clk 0:00:02]} 61. Kh3 {[%clk 0:00:27]}  Rd1 {[%clk 0:00:02]} 62. Re3 {[%clk 0:00:26]}  Rh1+ {[%clk 0:00:02]} 63. Kg2 {[%clk 0:00:26]}  Rb1 {[%clk 0:00:03]} 64. Re7+ {[%clk 0:00:26]}  Kg8 {[%clk 0:00:04]} 65. Ne6 {[%clk 0:00:24]}  Kh8 {[%clk 0:00:00]} 66. f7 {[%clk 0:00:23]} 1-0


[Site "https://www.chess.com"]

[Event "Titled Tuesday Blitz October 31 Early 2023"]
[White "Reprintsev, Alexander"]
[Black "Szente Varga, Fruzsina"]
[WhiteFideId "14100541"]
[BlackFideId "712264"]
[WhiteElo "2512"]
[BlackElo "2329"]
[Result "1-0"]
[Round "4"]
[TimeControl "180+1"]
[Date "2023.10.31"]
[WhiteClock "0:01:19"]
[BlackClock "0:00:00"]
[Board "125"]

1. e4 {[%clk 0:02:54]}  Nf6 {[%clk 0:02:46]} 2. e5 {[%clk 0:02:54]}  Nd5 {[%clk 0:02:42]} 3. d4 {[%clk 0:02:54]}  d6 {[%clk 0:02:31]} 4. c4 {[%clk 0:02:54]}  Nb6 {[%clk 0:02:31]} 5. f4 {[%clk 0:02:55]}  g6 {[%clk 0:02:30]} 6. Nc3 {[%clk 0:02:47]}  Bg7 {[%clk 0:02:30]} 7. h4 {[%clk 0:02:47]}  h5 {[%clk 0:02:29]} 8. Be3 {[%clk 0:02:45]}  dxe5 {[%clk 0:02:22]} 9. fxe5 {[%clk 0:02:44]}  Bg4 {[%clk 0:02:19]} 10. Qb3 {[%clk 0:02:42]}  Nc6 {[%clk 0:01:58]} 11. c5 {[%clk 0:02:38]}  Be6 {[%clk 0:01:27]} 12. Qd1 {[%clk 0:02:35]}  Nd5 {[%clk 0:01:26]} 13. Bf2 {[%clk 0:02:26]}  O-O {[%clk 0:01:00]} 14. Nf3 {[%clk 0:02:23]}  Bg4 {[%clk 0:00:49]} 15. Bc4 {[%clk 0:02:21]}  Nf4 {[%clk 0:00:44]} 16. O-O {[%clk 0:02:13]}  e6 {[%clk 0:00:32]} 17. Be3 {[%clk 0:02:06]}  Bh6 {[%clk 0:00:20]} 18. Ng5 {[%clk 0:01:58]}  Bxg5 {[%clk 0:00:19]} 19. hxg5 {[%clk 0:01:58]}  Nd5 {[%clk 0:00:18]} 20. Qd2 {[%clk 0:01:57]}  Nxe3 {[%clk 0:00:16]} 21. Qxe3 {[%clk 0:01:57]}  Qxd4 {[%clk 0:00:16]} 22. Qxd4 {[%clk 0:01:57]}  Nxd4 {[%clk 0:00:17]} 23. Rf4 {[%clk 0:01:51]}  Rad8 {[%clk 0:00:13]} 24. Raf1 {[%clk 0:01:51]}  c6 {[%clk 0:00:11]} 25. b4 {[%clk 0:01:49]}  Nc2 {[%clk 0:00:10]} 26. Bb3 {[%clk 0:01:41]}  Ne3 {[%clk 0:00:09]} 27. Re1 {[%clk 0:01:39]}  Nf5 {[%clk 0:00:08]} 28. b5 {[%clk 0:01:38]}  Nd4 {[%clk 0:00:05]} 29. bxc6 {[%clk 0:01:34]}  Nxc6 {[%clk 0:00:06]} 30. Nb5 {[%clk 0:01:33]}  Rd2 {[%clk 0:00:05]} 31. Nd6 {[%clk 0:01:33]}  Nd4 {[%clk 0:00:04]} 32. Bc4 {[%clk 0:01:22]}  Rc2 {[%clk 0:00:00]} 33. Rxd4 {[%clk 0:01:19]} 1-0


[Site "https://www.chess.com"]

[Event "Titled Tuesday Blitz October 31 Early 2023"]
[White "Kubicka, Anna"]
[Black "Der_Balak_3Halak"]
[WhiteFideId "1152254"]
[WhiteElo "2506"]
[BlackElo "2321"]
[Result "1-0"]
[Round "4"]
[TimeControl "180+1"]
[Date "2023.10.31"]
[WhiteClock "0:00:32"]
[BlackClock "0:00:08"]
[Board "128"]

1. e4 {[%clk 0:03:00]}  e5 {[%clk 0:02:59]} 2. Nf3 {[%clk 0:03:01]}  Nc6 {[%clk 0:03:00]} 3. Bc4 {[%clk 0:03:01]}  Bc5 {[%clk 0:03:00]} 4. O-O {[%clk 0:03:01]}  Nf6 {[%clk 0:03:00]} 5. d3 {[%clk 0:03:01]}  d6 {[%clk 0:03:00]} 6. c3 {[%clk 0:03:01]}  O-O {[%clk 0:02:58]} 7. h3 {[%clk 0:03:01]}  h6 {[%clk 0:02:56]} 8. a4 {[%clk 0:03:01]}  a5 {[%clk 0:02:55]} 9. Re1 {[%clk 0:02:57]}  Be6 {[%clk 0:02:54]} 10. Nbd2 {[%clk 0:02:56]}  Qe7 {[%clk 0:02:37]} 11. Qb3 {[%clk 0:02:53]}  Rab8 {[%clk 0:02:10]} 12. Bxe6 {[%clk 0:02:50]}  Qxe6 {[%clk 0:02:08]} 13. Qxe6 {[%clk 0:02:43]}  fxe6 {[%clk 0:02:09]} 14. Nc4 {[%clk 0:02:35]}  Nh5 {[%clk 0:01:58]} 15. Be3 {[%clk 0:02:25]}  Bxe3 {[%clk 0:01:53]} 16. fxe3 {[%clk 0:02:26]}  Ng3 {[%clk 0:01:50]} 17. Kh2 {[%clk 0:02:21]}  Nh5 {[%clk 0:01:46]} 18. d4 {[%clk 0:02:19]}  exd4 {[%clk 0:01:40]} 19. exd4 {[%clk 0:02:20]}  Nf4 {[%clk 0:01:34]} 20. Rad1 {[%clk 0:02:14]}  d5 {[%clk 0:01:33]} 21. exd5 {[%clk 0:02:12]}  exd5 {[%clk 0:01:34]} 22. Nce5 {[%clk 0:02:10]}  Nxe5 {[%clk 0:01:31]} 23. Nxe5 {[%clk 0:02:11]}  Rbe8 {[%clk 0:01:22]} 24. Nd7 {[%clk 0:02:03]}  Rxe1 {[%clk 0:01:21]} 25. Rxe1 {[%clk 0:02:04]}  Rd8 {[%clk 0:01:21]} 26. Nc5 {[%clk 0:01:41]}  b6 {[%clk 0:01:19]} 27. Na6 {[%clk 0:01:33]}  Rd7 {[%clk 0:01:14]} 28. Nb8 {[%clk 0:01:21]}  Rf7 {[%clk 0:01:03]} 29. Re8+ {[%clk 0:01:18]}  Kh7 {[%clk 0:01:01]} 30. Rd8 {[%clk 0:01:12]}  Kg6 {[%clk 0:00:55]} 31. Nd7 {[%clk 0:01:08]}  Nd3 {[%clk 0:00:45]} 32. Ne5+ {[%clk 0:01:07]}  Nxe5 {[%clk 0:00:46]} 33. dxe5 {[%clk 0:01:08]}  Rf2 {[%clk 0:00:30]} 34. e6 {[%clk 0:00:59]}  Re2 {[%clk 0:00:27]} 35. Rxd5 {[%clk 0:00:57]}  Rxe6 {[%clk 0:00:16]} 36. Rd7 {[%clk 0:00:57]}  c6 {[%clk 0:00:14]} 37. Rb7 {[%clk 0:00:57]}  c5 {[%clk 0:00:14]} 38. Kg3 {[%clk 0:00:52]}  Kf6 {[%clk 0:00:14]} 39. Kf4 {[%clk 0:00:52]}  g5+ {[%clk 0:00:14]} 40. Kf3 {[%clk 0:00:51]}  h5 {[%clk 0:00:14]} 41. g4 {[%clk 0:00:51]}  h4 {[%clk 0:00:13]} 42. Rc7 {[%clk 0:00:39]}  Ke5 {[%clk 0:00:12]} 43. Rg7 {[%clk 0:00:38]}  Kf6 {[%clk 0:00:12]} 44. Rh7 {[%clk 0:00:33]}  Rd6 {[%clk 0:00:11]} 45. Rh6+ {[%clk 0:00:32]}  Ke5 {[%clk 0:00:11]} 46. Rxd6 {[%clk 0:00:33]}  Kxd6 {[%clk 0:00:12]} 47. Ke4 {[%clk 0:00:33]}  Ke6 {[%clk 0:00:12]} 48. c4 {[%clk 0:00:32]}  Kf6 {[%clk 0:00:09]} 49. Kd5 {[%clk 0:00:32]}  Kg6 {[%clk 0:00:09]} 50. Ke6 {[%clk 0:00:32]}  Kg7 {[%clk 0:00:07]} 51. Kf5 {[%clk 0:00:32]}  Kh6 {[%clk 0:00:06]} 52. Kf6 {[%clk 0:00:32]}  b5 {[%clk 0:00:06]} 53. axb5 {[%clk 0:00:31]}  a4 {[%clk 0:00:07]} 54. b6 {[%clk 0:00:31]}  Kh7 {[%clk 0:00:07]} 55. b7 {[%clk 0:00:31]}  Kh6 {[%clk 0:00:08]} 56. b8=Q {[%clk 0:00:32]}  Kh7 {[%clk 0:00:08]} 57. Qf8 {[%clk 0:00:31]}  a3 {[%clk 0:00:08]} 58. Qg7# {[%clk 0:00:32]} 1-0


[Site "https://www.chess.com"]

[Event "Titled Tuesday Blitz October 31 Early 2023"]
[White "Harriott, Tyrell"]
[Black "Pinero Rodriguez, Carlos Jose"]
[WhiteFideId "2086484"]
[BlackFideId "3901726"]
[WhiteElo "2317"]
[BlackElo "2499"]
[Result "1/2-1/2"]
[Round "4"]
[TimeControl "180+1"]
[Date "2023.10.31"]
[WhiteClock "0:00:03"]
[BlackClock "0:00:19"]
[Board "130"]

1. d4 {[%clk 0:03:00]}  Nf6 {[%clk 0:02:58]} 2. e3 {[%clk 0:03:00]}  e6 {[%clk 0:02:57]} 3. Bd3 {[%clk 0:03:00]}  c5 {[%clk 0:02:58]} 4. c3 {[%clk 0:02:59]}  b6 {[%clk 0:02:59]} 5. f4 {[%clk 0:02:59]}  Bb7 {[%clk 0:02:57]} 6. Nf3 {[%clk 0:02:59]}  a6 {[%clk 0:02:52]} 7. Nbd2 {[%clk 0:02:57]}  Qc7 {[%clk 0:02:52]} 8. O-O {[%clk 0:02:51]}  d6 {[%clk 0:02:50]} 9. Qe2 {[%clk 0:02:50]}  Nbd7 {[%clk 0:02:47]} 10. e4 {[%clk 0:02:50]}  Be7 {[%clk 0:02:39]} 11. e5 {[%clk 0:02:46]}  Nd5 {[%clk 0:02:39]} 12. Ne4 {[%clk 0:02:44]}  cxd4 {[%clk 0:02:36]} 13. cxd4 {[%clk 0:02:41]}  Nb4 {[%clk 0:02:31]} 14. Bb1 {[%clk 0:02:31]}  Rc8 {[%clk 0:02:30]} 15. Bd2 {[%clk 0:02:26]}  d5 {[%clk 0:02:26]} 16. Neg5 {[%clk 0:02:03]}  h6 {[%clk 0:02:14]} 17. Nh3 {[%clk 0:02:01]}  Qc4 {[%clk 0:02:12]} 18. Qe3 {[%clk 0:01:54]}  Nc2 {[%clk 0:01:52]} 19. Bxc2 {[%clk 0:01:51]}  Qxc2 {[%clk 0:01:52]} 20. Bc3 {[%clk 0:01:49]}  Qe4 {[%clk 0:01:50]} 21. Qd2 {[%clk 0:01:49]}  b5 {[%clk 0:01:49]} 22. a3 {[%clk 0:01:48]}  Nb6 {[%clk 0:01:49]} 23. Rae1 {[%clk 0:01:44]}  Qf5 {[%clk 0:01:48]} 24. Qe2 {[%clk 0:01:39]}  Nc4 {[%clk 0:01:47]} 25. Nf2 {[%clk 0:01:37]}  h5 {[%clk 0:01:45]} 26. Nd3 {[%clk 0:01:33]}  h4 {[%clk 0:01:39]} 27. Ng5 {[%clk 0:01:27]}  Rc6 {[%clk 0:01:24]} 28. Rd1 {[%clk 0:01:17]}  Nxa3 {[%clk 0:01:18]} 29. Nb4 {[%clk 0:01:09]}  Rc8 {[%clk 0:01:13]} 30. Ra1 {[%clk 0:01:06]}  Nc4 {[%clk 0:01:11]} 31. Nxa6 {[%clk 0:01:03]}  Bxa6 {[%clk 0:01:09]} 32. Rxa6 {[%clk 0:01:02]}  b4 {[%clk 0:01:10]} 33. Be1 {[%clk 0:00:56]}  Nxb2 {[%clk 0:01:09]} 34. Qxb2 {[%clk 0:00:49]}  Rc2 {[%clk 0:01:09]} 35. Qb3 {[%clk 0:00:38]}  O-O {[%clk 0:01:07]} 36. Rb6 {[%clk 0:00:25]}  Bxg5 {[%clk 0:01:02]} 37. fxg5 {[%clk 0:00:22]}  Qe4 {[%clk 0:01:02]} 38. Qf3 {[%clk 0:00:19]}  Qxd4+ {[%clk 0:01:02]} 39. Bf2 {[%clk 0:00:20]}  Qc4 {[%clk 0:00:57]} 40. Rb7 {[%clk 0:00:13]}  Rc1 {[%clk 0:00:55]} 41. Be1 {[%clk 0:00:12]}  Qe4 {[%clk 0:00:21]} 42. Rxf7 {[%clk 0:00:10]}  Qxf3 {[%clk 0:00:21]} 43. R7xf3 {[%clk 0:00:09]}  Rxf3 {[%clk 0:00:19]} 44. gxf3 {[%clk 0:00:10]}  b3 {[%clk 0:00:19]} 45. Bb4 {[%clk 0:00:06]}  b2 {[%clk 0:00:18]} 46. Ba3 {[%clk 0:00:07]}  Rxf1+ {[%clk 0:00:17]} 47. Kxf1 {[%clk 0:00:05]}  b1=Q+ {[%clk 0:00:18]} 48. Kg2 {[%clk 0:00:04]}  Qa2+ {[%clk 0:00:19]} 49. Kh3 {[%clk 0:00:04]}  Qxa3 {[%clk 0:00:19]} 50. Kxh4 {[%clk 0:00:05]}  Qxf3 {[%clk 0:00:19]} 51. g6 {[%clk 0:00:04]}  Qf5 {[%clk 0:00:18]} 52. h3 {[%clk 0:00:03]}  Qxg6 {[%clk 0:00:19]} 1/2-1/2


[Site "https://www.chess.com"]